bitfinex/quotes_BTCUSD_20250102
["timestamp","ask_amount","ask_price","bid_price","bid_amount"]
[1735850562611,0.205111,97509.0,97496.0,0.205136]
[1735850562854,0.009,97505.0,97496.0,0.205136]
[1735850563118,0.205134,97497.0,97496.0,0.001]
[1735850563292,0.45912032,97497.0,97496.0,0.001]
[1735850563492,0.15,97496.0,97495.0,4.906e-05]
[1735850563717,0.25398632,97496.0,97495.0,4.906e-05]
[1735850564218,0.33048632,97496.0,97495.0,4.906e-05]
[1735850564630,0.33948632,97496.0,97495.0,4.906e-05]
[1735850564834,0.34959499,97496.0,97495.0,4.906e-05]
[1735850565385,0.35659499,97496.0,97495.0,0.00104906]
[1735850565816,0.34759499,97496.0,97495.0,0.00104906]
[1735850566012,0.34159499,97496.0,97495.0,4.906e-05]
[1735850566220,0.34159499,97496.0,97495.0,0.00304906]
[1735850566444,0.34059499,97496.0,97495.0,0.00304906]
[1735850566772,0.34959499,97496.0,97495.0,0.00304906]
[1735850567392,0.34959499,97496.0,97495.0,4.906e-05]
[1735850569402,0.34959499,97496.0,97495.0,0.00104906]
[1735850569403,0.35659499,97496.0,97495.0,0.00104906]
[1735850569767,0.447636,97496.0,97495.0,0.00104906]
[1735850571435,0.55162232,97496.0,97495.0,0.00104906]
[1735850572797,0.55192232,97496.0,97495.0,0.00104906]
[1735850574457,0.55192232,97496.0,97495.0,0.00113456]
[1735850578091,0.55162232,97496.0,97495.0,0.00083456]
[1735850579654,0.0925,97496.0,97495.0,0.00083456]
[1735850579858,0.016,97496.0,97495.0,0.00083456]
[1735850581698,0.016,97496.0,97495.0,8.55e-05]
[1735850581699,0.009,97496.0,97495.0,8.55e-05]
[1735850581913,0.003,97496.0,97495.0,8.55e-05]
[1735850582349,0.008,97496.0,97495.0,8.55e-05]
[1735850584187,0.008,97496.0,97495.0,0.10407182]
[1735850584918,0.008,97496.0,97495.0,1.69563287]
[1735850585888,0.008,97496.0,97495.0,1.59164655]
[1735850586086,0.008,97496.0,97495.0,8.55e-05]
[1735850586509,0.26198632,97496.0,97495.0,8.55e-05]
[1735850587148,0.25698632,97496.0,97495.0,8.55e-05]
[1735850587354,0.26198632,97496.0,97495.0,8.55e-05]
[1735850587761,0.25698632,97496.0,97495.0,8.55e-05]
[1735850587960,0.25398632,97496.0,97495.0,8.55e-05]
[1735850588369,0.25598632,97496.0,97495.0,8.55e-05]
[1735850588815,0.150171,97496.0,97495.0,8.55e-05]
[1735850589126,0.155171,97496.0,97495.0,0.0010855]
[1735850589280,0.164171,97496.0,97495.0,0.0010855]
[1735850593020,0.26815732,97496.0,97495.0,0.0010855]
[1735850594260,0.26315732,97496.0,97495.0,8.55e-05]
[1735850594483,0.26315732,97496.0,97495.0,0.0020855]
[1735850594994,0.26315732,97496.0,97495.0,8.55e-05]
[1735850595425,0.59174364,97496.0,97495.0,8.55e-05]
[1735850596038,0.60275732,97496.0,97495.0,0.0050855]
[1735850596247,0.60375732,97496.0,97495.0,0.0050855]
[1735850596654,0.60275732,97496.0,97495.0,0.0050855]
[1735850596861,0.60375732,97496.0,97495.0,0.0050855]
[1735850597061,0.60275732,97496.0,97495.0,0.0050855]
[1735850597268,0.60175732,97496.0,97495.0,8.55e-05]
[1735850597475,0.83326886,97496.0,97495.0,8.55e-05]
[1735850597949,0.83226886,97496.0,97495.0,8.55e-05]
[1735850598336,0.83326886,97496.0,97495.0,8.55e-05]
[1735850598717,0.60375732,97496.0,97495.0,8.55e-05]
[1735850599117,0.38075732,97496.0,97495.0,8.55e-05]
[1735850599459,0.56502002,97496.0,97495.0,8.55e-05]
[1735850600298,0.68802002,97496.0,97495.0,8.55e-05]
[1735850600431,0.64193301,97496.0,97495.0,8.55e-05]
[1735850602348,0.50375732,97496.0,97495.0,8.55e-05]
[1735850603142,0.64193301,97496.0,97495.0,8.55e-05]
[1735850604504,0.50375732,97496.0,97495.0,8.55e-05]
[1735850605515,0.64193301,97496.0,97495.0,8.55e-05]
[1735850605698,0.74193301,97496.0,97495.0,8.55e-05]
[1735850606278,0.60375732,97496.0,97495.0,8.55e-05]
[1735850608599,0.78802002,97496.0,97495.0,8.55e-05]
[1735850609041,0.578138,97495.0,97494.0,5e-07]
[1735850609269,0.76442432,97495.0,97494.0,5e-07]
[1735850610533,0.76542432,97495.0,97494.0,5e-07]
[1735850611215,0.76642432,97495.0,97494.0,5e-07]
[1735850611380,0.76542432,97495.0,97494.0,5e-07]
[1735850611540,0.76642432,97495.0,97494.0,5e-07]
[1735850617472,0.99643202,97495.0,97494.0,5e-07]
[1735850618527,0.76642432,97495.0,97494.0,5e-07]
[1735850622354,0.478168,97481.0,97465.0,8.55e-05]
[1735850622602,0.58215432,97481.0,97465.0,8.55e-05]
[1735850623628,0.58315432,97481.0,97465.0,8.55e-05]
[1735850623873,0.58415432,97481.0,97465.0,8.55e-05]
[1735850624075,0.60445173,97481.0,97465.0,8.55e-05]
[1735850625310,0.46115432,97481.0,97465.0,8.55e-05]
[1735850625789,0.47166667,97481.0,97465.0,8.55e-05]
[1735850627295,0.47166667,97481.0,97480.0,3.54e-05]
[1735850627848,0.21768035,97481.0,97480.0,3.54e-05]
[1735850628098,0.002,97481.0,97480.0,0.0832354]
[1735850628997,0.001,97481.0,97480.0,0.0832354]
[1735850629202,0.205155,97488.0,97480.0,0.0832354]
[1735850629466,0.002,97481.0,97480.0,0.1012354]
[1735850629703,0.001,97481.0,97480.0,0.0922354]
[1735850629909,0.205155,97488.0,97480.0,0.0832354]
[1735850630167,0.001,97481.0,97480.0,0.0932354]
[1735850630405,0.205155,97488.0,97480.0,0.0862354]
[1735850630634,0.009,97481.0,97480.0,0.0842354]
[1735850630881,0.205155,97488.0,97480.0,0.0832354]
[1735850631064,0.008,97481.0,97480.0,0.0842354]
[1735850632338,0.206155,97488.0,97480.0,0.0922354]
[1735850632578,0.205168,97481.0,97480.0,0.0962354]
[1735850633095,0.205168,97481.0,97480.0,0.0832354]
[1735850633329,0.218168,97481.0,97480.0,0.0842354]
[1735850633847,0.209168,97481.0,97480.0,0.0832354]
[1735850634089,0.209168,97481.0,97480.0,0.0842354]
[1735850634090,0.214168,97481.0,97480.0,0.0842354]
[1735850634322,0.220168,97481.0,97480.0,0.0852354]
[1735850635995,0.015,97481.0,97480.0,0.0852354]
[1735850637256,0.015171,97481.0,97480.0,0.0852354]
[1735850641840,0.015171,97481.0,97480.0,0.2904054]
[1735850642894,0.015171,97481.0,97480.0,0.3368054]
[1735850643245,0.015171,97481.0,97480.0,1.8368054]
[1735850643672,0.009171,97481.0,97480.0,1.8358054]
[1735850643866,0.013171,97481.0,97480.0,1.8358054]
[1735850645309,0.000171,97481.0,97480.0,1.8348054]
[1735850645689,0.010171,97481.0,97480.0,1.8358054]
[1735850645896,0.002171,97481.0,97480.0,1.84519529]
[1735850646103,0.002171,97481.0,97480.0,1.8358054]
[1735850646261,0.008171,97481.0,97480.0,1.8358054]
[1735850647701,0.008171,97481.0,97480.0,1.8357554]
[1735850648449,0.008171,97481.0,97480.0,1.9357554]
[1735850648773,0.008171,97481.0,97480.0,1.9358409]
[1735850649622,0.008171,97481.0,97480.0,2.03982722]
[1735850649802,0.000171,97506.0,97494.0,0.1]
[1735850650005,0.000171,97506.0,97494.0,0.45812632]
[1735850650225,0.000171,97506.0,97494.0,0.66092632]
[1735850650431,0.000171,97506.0,97494.0,2.53392632]
[1735850650634,0.000171,97506.0,97494.0,2.61062632]
[1735850651255,0.007171,97495.0,97494.0,2.61162632]
[1735850651465,0.007171,97495.0,97494.0,2.61062632]
[1735850651679,0.007171,97495.0,97494.0,2.84606577]
[1735850651880,0.00870763,97495.0,97494.0,2.84606577]
[1735850652083,0.01170763,97495.0,97494.0,2.84606577]
[1735850652483,0.000171,97506.0,97495.0,0.25]
[1735850652733,0.000171,97506.0,97495.0,0.43548632]
[1735850653081,0.000171,97506.0,97495.0,1.93548632]
[1735850653457,0.000171,97506.0,97495.0,1.83548632]
[1735850653723,0.000171,97506.0,97495.0,1.83648632]
[1735850653968,0.000171,97506.0,97495.0,1.78648632]
[1735850654169,0.000171,97506.0,97495.0,0.18648632]
[1735850654374,0.000171,97506.0,97495.0,0.18848632]
[1735850654581,0.000171,97506.0,97495.0,1.78648632]
[1735850655008,0.000171,97506.0,97495.0,1.78748632]
[1735850655382,0.000171,97506.0,97495.0,1.78848632]
[1735850655819,0.000171,97506.0,97495.0,1.78548632]
[1735850656030,0.000171,97506.0,97495.0,1.78848632]
[1735850659859,0.000171,97506.0,97495.0,1.81148632]
[1735850660059,0.000171,97506.0,97495.0,1.91148632]
[1735850661037,0.000171,97506.0,97495.0,1.91157182]
[1735850666776,0.000171,97506.0,97495.0,1.78857182]
[1735850667834,0.000171,97506.0,97499.0,0.1]
[1735850668111,0.000171,97506.0,97505.0,0.205117]
[1735850668356,0.000171,97506.0,97505.0,0.40414332]
[1735850669678,0.000171,97506.0,97505.0,1.90414332]
[1735850669926,0.002171,97506.0,97505.0,1.90414332]
[1735850670557,0.00224643,97506.0,97505.0,1.90414332]
[1735850670767,0.00324643,97506.0,97505.0,1.90414332]
[1735850671207,0.00324643,97506.0,97505.0,1.91432246]
[1735850671424,0.00324643,97506.0,97505.0,2.01432246]
[1735850671631,0.00324643,97506.0,97505.0,2.11972246]
[1735850671746,0.00324643,97506.0,97505.0,2.21972246]
[1735850672371,4.3e-07,97506.0,97505.0,2.70709247]
[1735850672570,4.3e-07,97506.0,97505.0,2.75229247]
[1735850672771,0.000171,97510.0,97509.0,0.578109]
[1735850672972,0.000171,97510.0,97509.0,0.68209532]
[1735850673199,0.000171,97510.0,97509.0,0.75999532]
[1735850673802,0.000171,97510.0,97509.0,2.25999532]
[1735850674226,0.002171,97510.0,97509.0,2.59736533]
[1735850676070,0.006171,97510.0,97509.0,2.59736533]
[1735850676467,0.006171,97510.0,97509.0,2.61812638]
[1735850677899,0.006171,97510.0,97509.0,2.51812638]
[1735850678142,0.004171,97510.0,97509.0,2.51812638]
[1735850678438,0.000171,97510.0,97509.0,2.51812638]
[1735850678675,0.000171,97510.0,97509.0,2.52312638]
[1735850678911,0.000171,97510.0,97509.0,2.6552292]
[1735850679330,0.000171,97510.0,97509.0,2.6592292]
[1735850679573,0.000171,97510.0,97509.0,2.6552292]
[1735850679828,0.000171,97510.0,97509.0,2.7552292]
[1735850680059,0.0001708,97531.0,97509.0,2.7552292]
[1735850680060,0.0001708,97531.0,97530.0,0.1]
[1735850680270,0.00024629,97531.0,97530.0,0.71185132]
[1735850680745,0.00024629,97531.0,97530.0,2.21185132]
[1735850681144,0.00024629,97531.0,97530.0,2.11185132]
[1735850681377,0.00924629,97531.0,97530.0,2.11285132]
[1735850683432,0.00924629,97531.0,97530.0,2.13389543]
[1735850683637,0.0827,97551.0,97550.0,0.205023]
[1735850683841,0.08319057,97551.0,97550.0,0.205023]
[1735850684246,0.08319057,97551.0,97550.0,1.705023]
[1735850684923,0.09019057,97551.0,97550.0,1.706023]
[1735850685166,0.09919057,97551.0,97550.0,1.707023]
[1735850687994,0.09919057,97551.0,97550.0,0.207023]
[1735850688360,0.09919057,97551.0,97550.0,1.707023]
[1735850691516,0.09919057,97551.0,97550.0,0.207023]
[1735850691717,0.09919057,97551.0,97550.0,0.002]
[1735850691923,0.45421057,97551.0,97550.0,0.002]
[1735850692134,0.50131057,97551.0,97550.0,0.002]
[1735850692568,0.60529689,97551.0,97550.0,0.002]
[1735850693407,0.61554272,97551.0,97550.0,0.002]
[1735850693659,0.60854272,97551.0,97550.0,0.001]
[1735850693868,0.60954272,97551.0,97550.0,0.01]
[1735850694088,0.60054272,97551.0,97550.0,0.009]
[1735850694507,0.60054272,97551.0,97512.0,0.13710282]
[1735850694508,0.1,97540.0,97512.0,0.13710282]
[1735850694717,0.0466,97517.0,97512.0,0.13710282]
[1735850694920,0.083,97516.0,97513.0,1.5]
[1735850695344,0.083,97516.0,97514.0,0.13710282]
[1735850695703,0.083,97516.0,97514.0,0.14510282]
[1735850696107,0.089,97516.0,97514.0,0.13817831]
[1735850696586,0.091,97516.0,97514.0,0.00107549]
[1735850696945,0.089,97516.0,97514.0,0.00107549]
[1735850697197,0.083,97516.0,97514.0,7.549e-05]
[1735850697720,0.091,97516.0,97514.0,0.00107549]
[1735850697940,0.093,97516.0,97514.0,7.549e-05]
[1735850698151,0.102,97516.0,97514.0,0.00107549]
[1735850699743,0.10189388,97516.0,97514.0,0.00107549]
[1735850704216,0.019,97516.0,97514.0,0.00107549]
[1735850705724,0.019,97516.0,97515.0,0.30908232]
[1735850705938,0.019,97516.0,97515.0,0.40562997]
[1735850706374,0.019,97516.0,97515.0,1.90562997]
[1735850706792,0.017,97516.0,97515.0,1.90562997]
[1735850706999,0.021,97516.0,97515.0,1.90562997]
[1735850707857,0.004,97516.0,97515.0,1.90562997]
[1735850708058,0.205035,97544.0,97535.0,0.205052]
[1735850708272,0.15,97543.0,97515.0,1.88638232]
[1735850708492,0.15,97543.0,97527.0,0.20507]
[1735850708768,0.205048,97539.0,97527.0,0.20507]
[1735850709204,0.15,97543.0,97514.0,0.09178819]
[1735850709205,0.1994,97530.0,97514.0,0.09178819]
[1735850709415,0.205071,97527.0,97514.0,0.09195919]
[1735850709612,8.55e-05,97516.0,97515.0,0.008]
[1735850709826,8.55e-05,97516.0,97514.0,0.00024649]
[1735850711117,0.25428632,97515.0,97514.0,0.00024649]
[1735850711329,0.60938232,97515.0,97514.0,0.00024649]
[1735850711758,0.58638232,97515.0,97514.0,0.00024649]
[1735850711981,0.482396,97515.0,97514.0,0.00024649]
[1735850712190,0.2773,97515.0,97514.0,0.00024649]
[1735850712400,0.2783,97515.0,97514.0,0.00724649]
[1735850712807,0.2773,97515.0,97514.0,0.00024649]
[1735850713023,0.2863,97515.0,97514.0,0.00124649]
[1735850713629,0.2923,97515.0,97514.0,0.00124649]
[1735850713946,0.39628632,97515.0,97514.0,0.00124649]
[1735850714910,0.41928632,97515.0,97514.0,0.00124649]
[1735850715773,0.41328632,97515.0,97514.0,0.00124649]
[1735850715993,0.40428632,97515.0,97514.0,0.00024649]
[1735850716411,0.40428632,97515.0,97514.0,0.00424649]
[1735850716617,0.2773,97515.0,97514.0,0.00424649]
[1735850716770,0.1273,97515.0,97514.0,0.00424649]
[1735850716969,0.001,97515.0,97514.0,0.00424649]
[1735850717601,0.001,97515.0,97514.0,0.00024649]
[1735850717807,0.002,97515.0,97514.0,0.00124649]
[1735850718230,0.001,97515.0,97514.0,0.00024649]
[1735850718435,0.01,97515.0,97514.0,0.00024649]
[1735850718677,0.009,97515.0,97514.0,0.00024649]
[1735850718910,0.015,97515.0,97514.0,0.00024649]
[1735850720460,0.220096,97515.0,97514.0,0.00024649]
[1735850722146,0.015,97515.0,97514.0,0.00024649]
[1735850722482,0.220096,97515.0,97514.0,0.00024649]
[1735850723134,0.62378232,97515.0,97514.0,0.00024649]
[1735850724030,0.92776864,97515.0,97514.0,0.00024649]
[1735850724252,0.481815,97506.0,97505.0,0.000171]
[1735850724463,0.58580132,97506.0,97505.0,0.000171]
[1735850724692,0.2767,97506.0,97505.0,0.000171]
[1735850725555,0.38168632,97506.0,97505.0,0.001171]
[1735850726800,0.39175737,97506.0,97505.0,0.001171]
[1735850729086,0.41475737,97506.0,97505.0,0.001171]
[1735850733897,0.41375737,97506.0,97505.0,0.000171]
[1735850734191,0.41375737,97506.0,97505.0,0.001171]
[1735850734409,0.41375737,97506.0,97505.0,0.000171]
[1735850734743,0.41475737,97506.0,97505.0,0.001171]
[1735850735404,0.41375737,97506.0,97505.0,0.000171]
[1735850735603,0.51375737,97506.0,97505.0,0.000171]
[1735850736366,0.51475737,97506.0,97505.0,0.000171]
[1735850737437,0.51575737,97506.0,97505.0,0.001171]
[1735850737637,0.53598694,97506.0,97505.0,0.001171]
[1735850737839,0.53498694,97506.0,97505.0,0.001171]
[1735850738065,0.53598694,97506.0,97505.0,0.001171]
[1735850738368,0.53498694,97506.0,97505.0,0.000171]
[1735850739282,0.53598694,97506.0,97505.0,0.001171]
[1735850740702,0.455136,97496.0,97465.0,8.55e-05]
[1735850740909,0.70952232,97496.0,97495.0,0.00016093]
[1735850741128,0.80952232,97496.0,97495.0,0.00016093]
[1735850741826,0.80952232,97496.0,97495.0,0.00116093]
[1735850741827,0.81052232,97496.0,97495.0,0.00116093]
[1735850742198,0.81052232,97496.0,97495.0,0.00016093]
[1735850742449,0.81252232,97496.0,97495.0,0.00116093]
[1735850742799,0.81152232,97496.0,97495.0,0.00116093]
[1735850743611,0.80952232,97496.0,97495.0,0.00016093]
[1735850743817,0.81052232,97496.0,97495.0,0.00016093]
[1735850744059,0.82056948,97496.0,97495.0,0.00016093]
[1735850744514,0.82156948,97496.0,97495.0,0.00016093]
[1735850744686,0.82056948,97496.0,97495.0,0.00016093]
[1735850744893,0.81956948,97496.0,97495.0,0.00016093]
[1735850745116,0.82056948,97496.0,97495.0,0.00016093]
[1735850745334,0.82156948,97496.0,97495.0,0.00016093]
[1735850750963,0.72156948,97496.0,97495.0,0.00016093]
[1735850751793,0.69856948,97496.0,97495.0,0.00016093]
[1735850752216,0.59856948,97496.0,97495.0,0.00016093]
[1735850752431,0.62156948,97496.0,97495.0,0.00016093]
[1735850752859,0.72156948,97496.0,97495.0,0.00016093]
[1735850753926,0.62156948,97496.0,97495.0,0.00016093]
[1735850755283,0.002,97496.0,97495.0,0.00016093]
[1735850756569,0.001,97496.0,97495.0,0.00016093]
[1735850756782,0.005,97496.0,97495.0,0.08306093]
[1735850757004,0.008,97496.0,97495.0,0.08306093]
[1735850757229,0.008,97496.0,97495.0,1.58306093]
[1735850757573,8.55e-05,97505.0,97495.0,1.58206093]
[1735850757803,0.009,97496.0,97495.0,1.58306093]
[1735850758019,8.55e-05,97505.0,97495.0,1.58206093]
[1735850758225,8.55e-05,97505.0,97500.0,0.205126]
[1735850758636,8.55e-05,97505.0,97496.0,0.205136]
[1735850760167,0.0130855,97505.0,97500.0,0.001]
[1735850760377,0.205119,97504.0,97495.0,0.08206093]
[1735850760596,0.205128,97500.0,97495.0,0.08206093]
[1735850760904,0.205128,97500.0,97496.0,0.001]
[1735850761251,0.205128,97500.0,97495.0,0.08206093]
[1735850761446,0.205128,97500.0,97495.0,0.08306093]
[1735850761760,0.209128,97500.0,97495.0,0.08206093]
[1735850761963,0.004,97500.0,97495.0,0.08206093]
[1735850762224,0.004,97500.0,97496.0,0.205135]
[1735850762777,0.004,97500.0,97497.0,1.5]
[1735850762983,8.55e-05,97505.0,97499.0,0.20513]
[1735850763182,8.55e-05,97505.0,97503.0,0.205121]
[1735850763556,8.55e-05,97505.0,97504.0,0.0486]
[1735850763763,8.55e-05,97505.0,97504.0,1.5486]
[1735850764199,0.0050855,97505.0,97504.0,1.5486]
[1735850764406,0.0140855,97505.0,97504.0,1.73368632]
[1735850764850,0.0090855,97505.0,97504.0,1.73368632]
[1735850765061,0.0180855,97505.0,97504.0,1.74479254]
[1735850766115,0.0240855,97505.0,97504.0,1.74579254]
[1735850766330,0.0060855,97505.0,97504.0,1.74479254]
[1735850766532,0.0080855,97505.0,97504.0,1.74479254]
[1735850766933,0.0080855,97505.0,97504.0,1.84479254]
[1735850767183,0.0020855,97505.0,97504.0,1.84379254]
[1735850767781,8.55e-05,97514.0,97513.0,0.3822]
[1735850767928,8.55e-05,97514.0,97513.0,0.48618632]
[1735850768479,8.55e-05,97514.0,97513.0,1.98618632]
[1735850769469,0.0020855,97514.0,97513.0,1.98618632]
[1735850769621,0.0050855,97514.0,97513.0,1.98618632]
[1735850769874,0.0050855,97514.0,97513.0,2.13428632]
[1735850770075,0.0050855,97514.0,97513.0,2.23428632]
[1735850770288,0.0050855,97514.0,97513.0,2.13428632]
[1735850770742,0.1500855,97551.0,97539.0,0.0786]
[1735850770976,0.15,97549.0,97539.0,0.0786]
[1735850771183,0.15,97549.0,97538.0,0.205047]
[1735850771367,0.15,97549.0,97542.0,0.205037]
[1735850771980,0.15049061,97549.0,97542.0,0.205037]
[1735850772607,0.00049061,97549.0,97542.0,0.205037]
[1735850773056,0.00649061,97549.0,97546.0,0.205029]
[1735850773484,0.01549061,97549.0,97546.0,0.205029]
[1735850773693,0.01549061,97549.0,97542.0,0.207038]
[1735850773902,0.01549061,97549.0,97542.0,0.002]
[1735850774108,0.00949061,97549.0,97542.0,0.001]
[1735850774317,0.00049061,97549.0,97541.0,1.705041]
[1735850774499,0.00749061,97549.0,97546.0,0.001]
[1735850774971,0.00749061,97549.0,97547.0,0.205029]
[1735850775851,0.00749061,97549.0,97548.0,1.5]
[1735850776285,0.01349061,97549.0,97548.0,1.5]
[1735850776525,0.00649061,97549.0,97548.0,1.5831]
[1735850776722,0.00549061,97549.0,97548.0,1.5831]
[1735850777043,0.01349061,97549.0,97548.0,1.5831]
[1735850777245,0.00049061,97549.0,97548.0,1.5831]
[1735850777498,0.00549061,97549.0,97548.0,1.5831]
[1735850777738,0.01349061,97549.0,97548.0,1.5841]
[1735850778740,0.00849061,97549.0,97548.0,1.5841]
[1735850778991,0.00849061,97549.0,97548.0,1.68708632]
[1735850779210,0.00249061,97549.0,97548.0,1.68708632]
[1735850779420,0.00349061,97549.0,97548.0,1.68708632]
[1735850779834,0.00249061,97549.0,97548.0,1.68708632]
[1735850780047,0.00149061,97549.0,97548.0,1.68708632]
[1735850780261,0.00349061,97549.0,97548.0,1.68708632]
[1735850780683,0.00357611,97549.0,97548.0,1.68708632]
[1735850783445,8.55e-05,97551.0,97548.0,1.68708632]
[1735850783698,0.00013452,97551.0,97549.0,0.30901132]
[1735850784125,0.00013452,97551.0,97550.0,1.5]
[1735850784315,0.00013452,97551.0,97550.0,1.60398632]
[1735850784531,0.15,97576.0,97561.0,0.204999]
[1735850784750,4.901e-05,97562.0,97561.0,0.204999]
[1735850785477,4.901e-05,97562.0,97561.0,1.704999]
[1735850785943,0.00404901,97562.0,97561.0,1.704999]
[1735850787245,0.01104901,97562.0,97561.0,1.705999]
[1735850791414,0.00704901,97562.0,97561.0,1.71645364]
[1735850791791,0.01004901,97562.0,97561.0,1.71645364]
[1735850792209,0.00704901,97562.0,97561.0,1.71645364]
[1735850792441,0.00104901,97562.0,97561.0,1.71545364]
[1735850792657,0.00113451,97562.0,97561.0,1.71545364]
[1735850793033,0.00013451,97562.0,97561.0,1.71545364]
[1735850793399,0.00213451,97562.0,97561.0,1.71545364]
[1735850794375,0.00257804,97562.0,97561.0,1.71545364]
[1735850795430,0.00257804,97562.0,97561.0,1.90123996]
[1735850795677,0.00257804,97562.0,97561.0,1.95083996]
[1735850795900,0.00257804,97562.0,97561.0,2.082621]
[1735850796838,0.002,97562.0,97561.0,2.082621]
[1735850797095,0.002,97562.0,97561.0,2.084621]
[1735850797376,0.000171,97579.0,97561.0,2.084621]
[1735850797377,0.000171,97579.0,97574.0,0.381972]
[1735850797623,0.000171,97579.0,97574.0,0.83805832]
[1735850797879,0.000171,97579.0,97574.0,0.96986259]
[1735850798111,0.000171,97579.0,97574.0,2.46986259]
[1735850798777,0.000171,97579.0,97578.0,0.304964]
[1735850799043,0.000171,97579.0,97578.0,0.44075459]
[1735850799557,0.000171,97579.0,97578.0,1.94075459]
[1735850799806,0.000171,97579.0,97578.0,2.01775459]
[1735850800048,0.15,97615.0,97600.0,0.204917]
[1735850800695,0.15,97615.0,97612.0,1.5]
[1735850800953,0.20502713,97618.0,97612.0,1.5]
[1735850800954,0.15,97613.0,97612.0,1.5]
[1735850801204,0.204912,97603.0,97584.0,0.20495]
[1735850801452,0.253813,97602.0,97584.0,0.20495]
[1735850801715,0.204922,97598.0,97585.0,1.5]
[1735850801979,0.2311,97601.0,97585.0,1.5]
[1735850802229,0.173,97596.0,97581.0,0.09129385]
[1735850802478,0.204938,97591.0,97581.0,0.09129385]
[1735850802727,0.10398632,97591.0,97581.0,0.09129385]
[1735850802985,0.204939,97590.0,97565.0,0.204989]
[1735850803220,0.204953,97584.0,97570.0,0.20498]
[1735850804112,0.204953,97584.0,97566.0,0.204989]
[1735850804312,8.55e-05,97579.0,97567.0,0.204987]
[1735850804564,8.55e-05,97579.0,97566.0,0.204989]
[1735850805040,8.55e-05,97579.0,97561.0,0.01019793]
[1735850805277,8.55e-05,97579.0,97563.0,0.204995]
[1735850805520,8.55e-05,97579.0,97568.0,0.204984]
[1735850805718,0.0020855,97579.0,97568.0,0.204984]
[1735850806508,0.0020855,97579.0,97563.0,0.206995]
[1735850806509,0.0828,97577.0,97563.0,0.002]
[1735850806716,0.2328,97577.0,97563.0,0.002]
[1735850806986,0.25398632,97577.0,97561.0,0.000171]
[1735850807179,0.204993,97565.0,97561.0,0.000171]
[1735850807443,0.15,97562.0,97561.0,0.000171]
[1735850807647,0.2265,97562.0,97561.0,0.000171]
[1735850807858,0.378004,97559.0,97558.0,0.09129385]
[1735850808124,0.58199032,97559.0,97558.0,0.09129385]
[1735850808332,0.58199032,97559.0,97514.0,0.205098]
[1735850808333,0.378031,97546.0,97545.0,0.09129385]
[1735850808543,0.48201732,97546.0,97545.0,0.09129385]
[1735850809422,0.15,97533.0,97495.0,0.1000855]
[1735850809632,0.15,97533.0,97503.0,0.2026]
[1735850809838,0.15,97533.0,97519.0,1.70557761]
[1735850810284,0.205063,97531.0,97519.0,1.50049061]
[1735850810564,0.205072,97527.0,97519.0,1.50049061]
[1735850810844,0.15,97522.0,97519.0,0.00049061]
[1735850811046,0.15,97520.0,97519.0,0.00049061]
[1735850812025,0.15,97522.0,97519.0,0.00049061]
[1735850812454,0.004,97520.0,97519.0,0.00149061]
[1735850812932,0.004,97520.0,97519.0,0.00049061]
[1735850813138,0.004,97520.0,97519.0,0.00149061]
[1735850813374,0.004,97520.0,97519.0,0.00049061]
[1735850813603,0.15,97522.0,97519.0,0.00149061]
[1735850813833,0.007,97520.0,97519.0,0.00149061]
[1735850815193,0.004,97520.0,97519.0,0.00049061]
[1735850815411,0.004,97520.0,97519.0,0.20574961]
[1735850815701,0.004,97520.0,97519.0,0.20674961]
[1735850815946,0.004,97520.0,97519.0,0.20574961]
[1735850816150,0.011,97520.0,97519.0,0.20674961]
[1735850817332,0.007,97520.0,97519.0,0.20674961]
[1735850817577,0.01,97520.0,97519.0,0.20674961]
[1735850818024,0.007,97520.0,97519.0,1.70674961]
[1735850818291,0.009,97520.0,97519.0,1.70674961]
[1735850818537,0.009,97520.0,97519.0,1.81073593]
[1735850818765,0.002,97520.0,97519.0,1.80973593]
[1735850819225,0.008,97520.0,97519.0,1.50166161]
[1735850819461,0.008,97520.0,97519.0,1.50066161]
[1735850819669,0.008,97520.0,97519.0,1.50266161]
[1735850819907,0.205063,97531.0,97519.0,1.50066161]
[1735850820168,0.205073,97527.0,97519.0,1.50066161]
[1735850820418,0.003,97520.0,97519.0,1.50066161]
[1735850820666,0.003,97520.0,97519.0,0.00066161]
[1735850820950,0.005,97520.0,97519.0,0.00066161]
[1735850821445,0.205081,97523.0,97519.0,0.00066161]
[1735850821699,0.003,97520.0,97519.0,0.00066161]
[1735850821953,0.006,97520.0,97519.0,0.00066161]
[1735850822212,0.003,97520.0,97519.0,0.00066161]
[1735850822428,0.011,97520.0,97519.0,0.00166161]
[1735850822712,0.003,97520.0,97519.0,0.00066161]
[1735850823129,0.008,97520.0,97519.0,0.00166161]
[1735850823558,0.008,97520.0,97519.0,0.00266161]
[1735850823924,0.008,97520.0,97519.0,0.00166161]
[1735850824292,0.014,97520.0,97519.0,0.00266161]
[1735850824879,0.29098632,97520.0,97519.0,0.00266161]
[1735850825101,0.37098632,97520.0,97519.0,0.00266161]
[1735850825939,0.36298632,97520.0,97519.0,0.00166161]
[1735850826167,0.35698632,97520.0,97519.0,0.00466161]
[1735850826362,0.35698632,97520.0,97519.0,0.00666161]
[1735850826575,0.35698632,97520.0,97519.0,0.00266161]
[1735850826923,0.35698632,97520.0,97519.0,0.00066161]
[1735850827145,0.33398632,97520.0,97519.0,0.00066161]
[1735850827395,0.33498632,97520.0,97519.0,0.00666161]
[1735850827829,0.35798632,97520.0,97519.0,0.00966161]
[1735850828020,0.35698632,97520.0,97519.0,0.00066161]
[1735850828270,0.35798632,97520.0,97519.0,0.00666161]
[1735850828457,0.35898632,97520.0,97519.0,0.01566161]
[1735850836560,0.152,97520.0,97519.0,0.01566161]
[1735850836778,0.002,97520.0,97519.0,0.01566161]
[1735850836991,0.002,97520.0,97519.0,1.59316161]
[1735850837425,0.001,97520.0,97519.0,1.58716161]
[1735850837540,0.15,97539.0,97519.0,1.57816161]
[1735850837769,0.15,97537.0,97524.0,0.205076]
[1735850837987,0.173,97535.0,97519.0,0.00166161]
[1735850838202,0.173,97533.0,97519.0,0.00066161]
[1735850838402,0.001,97520.0,97519.0,0.00066161]
[1735850838850,0.001,97520.0,97519.0,0.00266161]
[1735850839245,0.205077,97525.0,97519.0,0.00266161]
[1735850839465,0.205079,97523.0,97519.0,0.00366161]
[1735850839669,0.10398632,97522.0,97519.0,0.00366161]